fUST/lending_fUST_20260203
["ID","MTS","AMOUNT","RATE_DAILY","PERIOD"]
[404305089,1770051043849,-1500.0,0.00014368,2]
[404305091,1770051043859,-1450.84107282,0.00014368,2]
[404305093,1770051043868,-1500.0,0.00014368,2]
[404305095,1770051043877,-449.36895108,0.00014368,2]
[404305097,1770051043886,-1500.0,0.00014368,2]
[404305099,1770051043895,-1109.41255355,0.00014368,2]
[404305101,1770051043904,-1500.0,0.00014368,2]
[404305103,1770051043914,-1500.0,0.00014368,2]
[404305105,1770051043923,-725.35356092,0.00014368,2]
[404305107,1770051043933,-933.64061428,0.00014368,2]
[404305109,1770051043943,-887.99846444,0.00014368,2]
[404305111,1770051043951,-500.0,0.00014383,2]
[404305113,1770051043960,-4536.2,0.00014383,2]
[404305115,1770051043970,-1000.79142467,0.00014384,2]
[404305117,1770051043978,-392.0,0.00014431,2]
[404305119,1770051043988,-420.0,0.00014431,2]
[404305121,1770051043997,-365.0,0.00014476,2]
[404305123,1770051044006,-1680.0,0.00014477,2]
[404305125,1770051044015,-300.16676177,0.00014768,2]
[404305127,1770051044024,-900.0,0.00014768,2]
[404305129,1770051044033,-4536.2,0.00014794,2]
[404305131,1770051044042,-158.30619502,0.00014795,2]
[404305133,1770051044051,-672.01553125,0.00014795,2]
[404305135,1770051044060,-656.17257091,0.00014795,2]
[404305136,1770051044070,-1500.0,0.00014795,2]
[404305139,1770051044080,-1011.10142396,0.00014795,2]
[404305141,1770051044088,-1500.0,0.00014795,2]
[404305143,1770051044097,-1500.0,0.00014795,2]
[404305145,1770051044106,-198.6061094,0.00014795,2]
[404305147,1770051044115,-1005.84091262,0.00014795,2]
[404305149,1770051044126,-1004.27057554,0.00014795,2]
[404305151,1770051044134,-608.26543567,0.00014795,2]
[404305153,1770051044143,-1500.0,0.00014795,2]
[404305155,1770051044152,-1500.0,0.00014795,2]
[404305157,1770051044162,-1500.0,0.00014795,2]
[404305159,1770051044171,-1396.85361375,0.00014795,2]
[404305161,1770051044181,-1507.54935569,0.00014795,2]
[404305163,1770051044189,-204.61173048,0.00014795,2]
[404305165,1770051044198,-720.84025131,0.00014795,2]
[404305167,1770051044207,-627.59093619,0.00014795,2]
[404305169,1770051044216,-720.0,0.0001489,2]
[404305171,1770051044225,-500.0,0.00014916,2]
[404305173,1770051044234,-4536.2,0.00014916,2]
[404305175,1770051044244,-4536.2,0.00014916,2]
[404305177,1770051044252,-4536.2,0.00014916,2]
[404305179,1770051044261,-4536.2,0.00014916,2]
[404305181,1770051044270,-4536.25966775,0.00014916,2]
[404305183,1770051044283,-2000.0,0.00014916,2]
[404305185,1770051044292,-2000.0,0.00014916,2]
[404305187,1770051044301,-2000.0,0.00014916,2]
[404305189,1770051044310,-2000.0,0.00014916,2]
[404305191,1770051044322,-2149.34675662,0.00014916,2]
[404305193,1770051044332,-2000.0,0.00014916,2]
[404305195,1770051044342,-2000.0,0.00014916,2]
[404305197,1770051044352,-2000.0,0.00014916,2]
[404305199,1770051044361,-2000.0,0.00014916,2]
[404305201,1770051044371,-1004.79261489,0.00014916,2]
[404305203,1770051044381,-2013.20916658,0.00014916,2]
[404305205,1770051044390,-2000.0,0.00014916,2]
[404305207,1770051044399,-2000.0,0.00014916,2]
[404305209,1770051044409,-164.0965,0.00015068,2]
[404305211,1770051044418,-201.75252882,0.00015068,2]
[404305213,1770051044427,-180.37708882,0.00015161,2]
[404305215,1770051044436,-1200.0,0.00015316,2]
[404305217,1770051044445,-10000.0,0.00015342,2]
[404305219,1770051044454,-2000.0,0.00015342,2]
[404305221,1770051044463,-2000.0,0.00015342,2]
[404305223,1770051044472,-2000.0,0.00015342,2]
[404305225,1770051044483,-2000.0,0.00015342,2]
[404305227,1770051044493,-2000.0,0.00015342,2]
[404305229,1770051044502,-2000.0,0.00015342,2]
[404305231,1770051044511,-625.1,0.00015342,2]
[404305233,1770051044520,-625.1,0.00015342,2]
[404305235,1770051044529,-625.1,0.00015342,2]
[404305237,1770051044538,-625.1,0.00015342,2]
[404305239,1770051044547,-625.1,0.00015342,2]
[404305241,1770051044556,-625.1,0.00015342,2]
[404305243,1770051044565,-625.1,0.00015342,2]
[404305245,1770051044573,-625.1,0.00015342,2]
[404305247,1770051044583,-625.1,0.00015342,2]
[404305248,1770051044592,-625.1,0.00015342,2]
[404305251,1770051044601,-625.1,0.00015342,2]
[404305252,1770051044610,-625.1,0.00015342,2]
[404305255,1770051044621,-1191.76,0.00015342,2]
[404305257,1770051044630,-10000.0,0.00015442,2]
[404305259,1770051044639,-500.0,0.00015464,2]
[404305261,1770051044649,-2500.0,0.00015464,2]
[404305263,1770051044658,-2500.0,0.00015464,2]
[404305265,1770051044668,-2500.0,0.00015464,2]
[404305267,1770051044677,-2500.0,0.00015464,2]
[404305269,1770051044687,-2500.0,0.00015464,2]
[404305271,1770051044696,-2500.0,0.00015464,2]
[404305273,1770051044706,-357.61222733,0.00015464,2]
[404305275,1770051044715,-2500.0,0.00015464,2]
[404305277,1770051044724,-2500.0,0.00015464,2]
[404305279,1770051044734,-2500.0,0.00015464,2]
[404305281,1770051044743,-10000.0,0.00015542,2]
[404305283,1770051044752,-6335.32,0.00015642,2]
[404305285,1770051044761,-587.0,0.00015823,2]
[404305287,1770051044770,-1500.0,0.00015864,2]
[404305289,1770051044780,-2500.0,0.0001589,2]
[404305291,1770051044790,-1143.930988,0.0001589,2]
[404305293,1770051044799,-1243.17653789,0.0001589,2]
[404305295,1770051044808,-1006.90826306,0.0001589,2]
[404305297,1770051044817,-2500.0,0.0001589,2]
[404305304,1770051044880,-2500.0,0.0001589,2]
[404305306,1770051044891,-4070.3505431,0.00015899,2]
[404305309,1770051044902,-873.35048619,0.00015899,2]
[404305311,1770051044912,-2351.0,0.00015925,2]
[404305312,1770051044921,-500.0,0.00016012,2]
[404305314,1770051044931,-3000.0,0.00016012,2]
[404305317,1770051044940,-3000.0,0.00016012,2]
[404305319,1770051044950,-3000.0,0.00016012,2]
[404305321,1770051044959,-1663.32996403,0.00016012,2]
[404305323,1770051044968,-558.10263159,0.00016012,2]
[404305325,1770051044978,-3000.0,0.00016012,2]
[404305327,1770051044990,-3000.0,0.00016012,2]
[404305329,1770051044999,-3000.0,0.00016012,2]
[404305331,1770051045009,-3000.0,0.00016012,2]
[404305333,1770051045018,-864.0,0.00016379,2]
[404305335,1770051045027,-1800.0,0.00016412,2]
[404305336,1770051045036,-164.69070455,0.00016438,2]
[404305339,1770051045046,-527.96138248,0.00016438,2]
[404305341,1770051045056,-3000.0,0.00016438,2]
[404305343,1770051045065,-3000.0,0.00016438,2]
[404305345,1770051045075,-484.48559781,0.0001656,2]
[404305347,1770051045084,-2980.65928571,0.0001656,2]
[404305349,1770051045094,-1504.81393243,0.0001656,2]
[404305350,1770051045103,-3500.0,0.0001656,2]
[404305352,1770051045113,-3500.0,0.0001656,2]
[404305354,1770051045122,-3500.0,0.0001656,2]
[404305357,1770051045132,-3500.0,0.0001656,2]
[404305359,1770051045142,-1378.02466455,0.0001696,2]
[404305361,1770051045151,-3500.0,0.00016986,2]
[404305363,1770051045163,-3500.0,0.00016986,2]
[404305365,1770051045172,-2845.11815899,0.00017108,2]
[404305367,1770051045181,-1339.12095846,0.00017108,2]
[404305369,1770051045191,-4000.0,0.00017108,2]
[404305371,1770051045200,-4000.0,0.00017108,2]
[404305373,1770051045209,-207.89223797,0.00017161,2]
[404305375,1770051045218,-500.0,0.00017263,2]
[404305377,1770051045227,-500.0,0.00017264,2]
[404305379,1770051045238,-28490.07033175,0.00017264,2]
[404305381,1770051045247,-823.0,0.0001735,2]
[404305383,1770051045257,-250.0,0.00017391,2]
[404305385,1770051045266,-8543.99401669,0.0001747,2]
[404305387,1770051045276,-3292.0,0.00017517,2]
[404305388,1770051045288,-4000.0,0.00017534,2]
[404305390,1770051045298,-1075.28022548,0.00017534,2]
[404305392,1770051045307,-4500.0,0.00017656,2]
[404305394,1770051045316,-1421.35205757,0.00017656,2]
[404305396,1770051045327,-130226.08901596,0.00018,2]
[404305399,1770051045338,-1000.0,0.00018016,2]
[404305401,1770051045349,-4500.0,0.00018082,2]
[404305403,1770051045360,-693.3651769,0.00018204,2]
[404305405,1770051045370,-1731.05845026,0.0001863,2]
[404305406,1770051045381,-303.10001603,0.000189,2]
[404305409,1770051045391,-303.10001603,0.000189,2]
[404305410,1770051045400,-2864.31604835,0.00019,2]
[404305412,1770051045409,-1152.0,0.00019024,2]
[404305414,1770051045418,-303.10001603,0.00019089,2]
[404305416,1770051045427,-303.10001603,0.00019089,2]
[404305418,1770051045436,-235.40738711,0.00019161,2]
[404305420,1770051045446,-308.02,0.000192,2]
[404305423,1770051045457,-4609.0,0.00019269,2]
[404305425,1770051045467,-454.65002395,0.00019278,2]
[404305427,1770051045477,-303.10001603,0.00019278,2]
[404305429,1770051045488,-500.0,0.00019418,2]
[404305431,1770051045498,-303.10001606,0.00019467,2]
[404305433,1770051045507,-164.0965,0.00019635,2]
[404305435,1770051045517,-1000.0,0.00019818,2]
[404305438,1770051045526,-244.0,0.00019818,2]
[404305441,1770051045535,-179.74165614,0.00019915,2]
[404305444,1770051045544,-3509.06239478,0.0002,20]
[404305447,1770051045553,-150.46937799,0.0002,7]
[404305450,1770051045562,-1129.512671,0.00020548,2]
[404305452,1770051045571,-250.0,0.00020733,2]
[404305454,1770051045580,-250.0,0.00020733,2]
[404305456,1770051045589,-250.0,0.00020733,2]
[404305459,1770051045599,-250.0,0.00020733,2]
[404305461,1770051045608,-250.0,0.00020733,2]
[404305463,1770051045617,-250.0,0.00020733,2]
[404305465,1770051045627,-250.0,0.00020733,2]
[404305466,1770051045637,-250.0,0.00020733,2]
[404305468,1770051045648,-250.0,0.00020733,2]
[404305470,1770051045658,-250.0,0.00020733,2]
[404305472,1770051045667,-250.0,0.00020733,2]
[404305474,1770051045676,-1500.0,0.00020733,2]
[404305476,1770051045685,-715.43924305,0.00020733,2]
[404305478,1770051045694,-500.0,0.00020733,2]
[404305480,1770051045703,-500.0,0.00020733,2]
[404305482,1770051045713,-385.27008244,0.00020733,2]
[404305484,1770051045722,-1613.0,0.0002086,2]
[404305487,1770051045734,-805.74771269,0.00021,5]
[404305489,1770051045744,-14927.7180176,0.00021,2]
[404305491,1770051045753,-3488.61,0.00021,2]
[404305493,1770051045762,-262.92253625,0.00021161,2]
[404305495,1770051045772,-6453.0,0.00021196,2]
[404305497,1770051045782,-415.24234966,0.00021391,2]
[404305500,1770051045791,-1000.0,0.000218,10]
[404305503,1770051045801,-492.0,0.000218,10]
[404305506,1770051045811,-150.0,0.00021918,2]
[404305508,1770051045820,-150.38236857,0.00021918,2]
[404305510,1770051045829,-150.66764773,0.00022466,2]
[404305512,1770051045838,-2258.0,0.00022872,2]
[404305514,1770051045847,-290.43768539,0.00023161,2]
[404305517,1770051045858,-541.0,0.00023315,2]
[404305518,1770051045867,-150.0,0.00023425,30]
[404305520,1770051045876,-219.466498,0.00023425,30]
[404305522,1770051045885,-288.932997,0.00023425,30]
[404305530,1770051045944,-358.399496,0.00023425,30]
[404305532,1770051045955,-427.865995,0.00023425,30]
[404305534,1770051045964,-497.332493,0.00023425,30]
[404305536,1770051045973,-566.798992,0.00023425,30]
[404305538,1770051045984,-636.265491,0.00023425,30]
[404305540,1770051045993,-705.73199,0.00023425,30]
[404305542,1770051046003,-775.198488,0.00023425,30]
[404305544,1770051046012,-150.0,0.00023635,30]
[404305546,1770051046022,-565.346526,0.00023635,30]
[404305548,1770051046032,-980.693052,0.00023635,30]
[404305550,1770051046041,-1396.039578,0.00023635,30]
[404305552,1770051046051,-1811.386104,0.00023635,30]
[404305554,1770051046061,-2226.732631,0.00023635,30]
[404305556,1770051046070,-2642.079157,0.00023635,30]
[404305558,1770051046079,-3057.425683,0.00023635,30]
[404305560,1770051046088,-3472.772209,0.00023635,30]
[404305562,1770051046097,-3888.118735,0.00023635,30]
[404305564,1770051046106,-150.0,0.0002378,30]
[404305566,1770051046115,-472.0465,0.0002378,30]
[404305568,1770051046124,-794.093,0.0002378,30]
[404305570,1770051046134,-1116.139501,0.0002378,30]
[404305572,1770051046143,-1438.186001,0.0002378,30]
[404305574,1770051046152,-1760.232501,0.0002378,30]
[404305576,1770051046161,-2082.279002,0.0002378,30]
[404305578,1770051046171,-2404.325502,0.0002378,30]
[404305580,1770051046180,-2726.372003,0.0002378,30]
[404305582,1770051046189,-3048.418503,0.0002378,30]
[404305584,1770051046199,-1000.0,0.0002398,10]
[404305586,1770051046208,-791.0,0.0002398,10]
[404305588,1770051046217,-466.69434652,0.00024,2]
[404305590,1770051046227,-2132.2193609,0.00024142,2]
[404305592,1770051046240,-164.0965,0.00024201,2]
[404305594,1770051046249,-150.0,0.00024385,30]
[404305596,1770051046258,-150.353412,0.00024385,30]
[404305599,1770051046267,-150.706825,0.00024385,30]
[404305601,1770051046281,-151.060238,0.00024385,30]
[404305603,1770051046290,-151.413651,0.00024385,30]
[404305605,1770051046299,-151.767064,0.00024385,30]
[404305607,1770051046309,-152.120477,0.00024385,30]
[404305609,1770051046319,-152.47389,0.00024385,30]
[404305610,1770051046328,-152.827303,0.00024385,30]
[404305612,1770051046338,-153.180716,0.00024385,30]
[404305614,1770051046349,-25988.52546482,0.0002465,2]
[404305616,1770051046358,-1744.05574949,0.00024651,2]
[404305619,1770051046369,-150.0,0.00024658,2]
[404305621,1770051046378,-200.0,0.00024658,2]
[404305623,1770051046387,-88157.0110536,0.000249,2]
[404305625,1770051046397,-2304.20646981,0.00025,2]
[404305627,1770051046406,-10364.0,0.00025,2]
[404305629,1770051046415,-500.0,0.00025,2]
[404305631,1770051046425,-150.0,0.00025,2]
[404305633,1770051046434,-761.7384674,0.00025,2]
[404305635,1770051046443,-2554.0,0.00025079,2]
[404305637,1770051046452,-281.5846409,0.00025157,2]
[404305639,1770051046462,-317.95283454,0.00025161,2]
[404305641,1770051046473,-308.02,0.000252,14]
[404305643,1770051046483,-250.0,0.00025205,2]
[404305645,1770051046492,-451.21541243,0.00025753,2]
[404305647,1770051046501,-530.89666333,0.00026,2]
[404305649,1770051046510,-29866.68266487,0.00026,30]
[404305651,1770051046519,-19900.0,0.00026,2]
[404305653,1770051046529,-300.0,0.00026116,2]
[404305655,1770051046538,-195.03033217,0.0002616,2]
[404305657,1770051046547,-3488.61,0.000263,2]
[404305659,1770051046556,-1000.0,0.00026378,30]
[404305661,1770051046566,-1000.0,0.00026378,30]
[404305663,1770051046575,-193.60888764,0.00026384,14]
[404305665,1770051046584,-345.46798368,0.00027161,2]
[404305667,1770051046593,-150.0,0.0002739,2]
[404305669,1770051046602,-500.0,0.00027397,2]
[404305671,1770051046612,-510.23955136,0.00027397,2]
[404305673,1770051046620,-2106.21890748,0.00027397,2]
[404305675,1770051046629,-2106.21890748,0.00027397,2]
[404305677,1770051046638,-2106.21890748,0.00027397,2]
[404305679,1770051046647,-2106.21890748,0.00027397,2]
[404305681,1770051046656,-2106.21890748,0.00027397,2]
[404305683,1770051046665,-2106.21890748,0.00027397,2]
[404305685,1770051046674,-2106.21890748,0.00027397,2]
[404305686,1770051046683,-2106.21890748,0.00027397,2]
[404305689,1770051046692,-2106.21890748,0.00027397,2]
[404305690,1770051046701,-2106.21890748,0.00027397,2]
[404305692,1770051046710,-2106.21890748,0.00027397,2]
[404305694,1770051046719,-2106.21890748,0.00027397,2]
[404305696,1770051046729,-2106.21890748,0.00027397,2]
[404305698,1770051046739,-2106.21890748,0.00027397,2]
[404305700,1770051046748,-2106.21890748,0.00027397,2]
[404305702,1770051046757,-2106.21890748,0.00027397,2]
[404305704,1770051046766,-2106.21890748,0.00027397,2]
[404305706,1770051046776,-2106.21890748,0.00027397,2]
[404305708,1770051046785,-2106.21890748,0.00027397,2]
[404305710,1770051046794,-2106.21890748,0.00027397,2]
[404305712,1770051046804,-2106.21890748,0.00027397,2]
[404305714,1770051046814,-2106.21890748,0.00027397,2]
[404305716,1770051046823,-2106.21890748,0.00027397,2]
[404305718,1770051046833,-2106.21890748,0.00027397,2]
[404305720,1770051046842,-2106.21890748,0.00027397,2]
[404305722,1770051046853,-2106.21890748,0.00027397,2]
[404305729,1770051046912,-2106.21890748,0.00027397,2]
[404305731,1770051046922,-2106.21890748,0.00027397,2]
[404305733,1770051046931,-2106.21890748,0.00027397,2]
[404305735,1770051046940,-2106.21890748,0.00027397,2]
[404305737,1770051046950,-2106.21890748,0.00027397,2]
[404305739,1770051046959,-2106.21890748,0.00027397,2]
[404305741,1770051046968,-2106.21890748,0.00027397,2]
[404305743,1770051046978,-2106.21890748,0.00027397,2]
[404305745,1770051046988,-2106.21890748,0.00027397,2]
[404305747,1770051046997,-2106.21890748,0.00027397,2]
[404305749,1770051047007,-2106.21890748,0.00027397,2]
[404305751,1770051047017,-2106.21890748,0.00027397,2]
[404305754,1770051047027,-2106.21890748,0.00027397,2]
[404305755,1770051047037,-2106.21890748,0.00027397,2]
[404305757,1770051047046,-2106.21890748,0.00027397,2]
[404305759,1770051047055,-2106.21890748,0.00027397,2]
[404305761,1770051047064,-2106.21890748,0.00027397,2]
[404305763,1770051047073,-2106.21890748,0.00027397,2]
[404305765,1770051047082,-2106.21890748,0.00027397,2]
[404305767,1770051047091,-2106.21890748,0.00027397,2]
[404305769,1770051047100,-2106.21890748,0.00027397,2]
[404305771,1770051047110,-2106.21890748,0.00027397,2]
[404305773,1770051047119,-2106.21890748,0.00027397,2]
[404305775,1770051047128,-2106.21890748,0.00027397,2]
[404305777,1770051047138,-2106.21890748,0.00027397,2]
[404305779,1770051047146,-2106.21890748,0.00027397,2]
[404305781,1770051047155,-2106.21890748,0.00027397,2]
[404305783,1770051047164,-2106.21890748,0.00027397,2]
[404305785,1770051047174,-2106.21890748,0.00027397,2]
[404305786,1770051047183,-2106.21890748,0.00027397,2]
[404305787,1770051047192,-2106.21890748,0.00027397,2]
[404305788,1770051047202,-2106.21890748,0.00027397,2]
[404305789,1770051047210,-2106.21890748,0.00027397,2]
[404305790,1770051047219,-2106.21890748,0.00027397,2]
[404305791,1770051047229,-2106.21890748,0.00027397,2]
[404305792,1770051047239,-2106.21890748,0.00027397,2]
[404305793,1770051047249,-2106.21890748,0.00027397,2]
[404305794,1770051047258,-2106.21890748,0.00027397,2]
[404305795,1770051047268,-2106.21890748,0.00027397,2]
[404305796,1770051047281,-2106.21890748,0.00027397,2]
[404305797,1770051047294,-2106.21890748,0.00027397,2]
[404305798,1770051047303,-2106.21890748,0.00027397,2]
[404305799,1770051047312,-2106.21890748,0.00027397,2]
[404305800,1770051047322,-2106.21890748,0.00027397,2]
[404305801,1770051047332,-2085.15671843,0.00027397,2]
[404305802,1770051047341,-2085.15671843,0.00027397,2]
[404305803,1770051047351,-2085.15671843,0.00027397,2]
[404305804,1770051047360,-2085.15671843,0.00027397,2]
[404305805,1770051047370,-2085.15671843,0.00027397,2]
[404305806,1770051047379,-2085.15671843,0.00027397,2]
[404305807,1770051047388,-2085.15671843,0.00027397,2]
[404305808,1770051047398,-2085.15671843,0.00027397,2]
[404305809,1770051047407,-2085.15671843,0.00027397,2]
[404305810,1770051047416,-2085.15671843,0.00027397,2]
[404305811,1770051047425,-2085.15671843,0.00027397,2]
[404305812,1770051047435,-2085.15671843,0.00027397,2]
[404305813,1770051047443,-2085.15671843,0.00027397,2]
[404305815,1770051047452,-2085.15671843,0.00027397,2]
[404305816,1770051047461,-2085.15671843,0.00027397,2]
[404305817,1770051047471,-2085.15671843,0.00027397,2]
[404305818,1770051047479,-2085.15671843,0.00027397,2]
[404305819,1770051047490,-2085.15671843,0.00027397,2]
[404305821,1770051047499,-2085.15671843,0.00027397,2]
[404305823,1770051047508,-2085.15671843,0.00027397,2]
[404305825,1770051047517,-500.0,0.00027397,5]
[404305827,1770051047526,-150.0,0.00027397,5]
[404305828,1770051047536,-330.70734505,0.00027435,2]
[404305829,1770051047544,-46043.42643194,0.000275,2]
[404305830,1770051047554,-852.53086098,0.00027945,5]
[404305831,1770051047564,-205.06551805,0.00027945,5]
[404305832,1770051047574,-15348.5339794,0.00028,2]
[404305833,1770051047583,-177.73655195,0.0002876,2]
[404305834,1770051047592,-164.0965,0.00028767,60]
[404305835,1770051047602,-892.33416316,0.00029,2]
[404305836,1770051047611,-1000.0,0.00029016,30]
[404305837,1770051047620,-1000.0,0.00029016,30]
[404305838,1770051047629,-579.0,0.00029016,30]
[404305839,1770051047638,-372.98313282,0.00029161,2]
[404305840,1770051047647,-4625.992444,0.00029281,30]
[404305841,1770051047656,-20190.593679,0.00029544,30]
[404305842,1770051047665,-172.604,0.00029998,24]
[404305844,1770051047674,-37819.53001127,0.0003,2]
[404305846,1770051047683,-403.62377021,0.0003,30]
[404305848,1770051047692,-270.18256188,0.0003,2]
[404305850,1770051047700,-150.0,0.0003013,2]
[404305852,1770051047709,-1515.90358,0.00030482,30]
[404305853,1770051047718,-9671.0,0.00031,120]
[404305855,1770051047727,-150.74760261,0.00031081,2]
[404305857,1770051047738,-500.0,0.00031081,2]
[404305864,1770051047796,-500.0,0.00031081,2]
[404305866,1770051047806,-500.0,0.00031081,2]
[404305868,1770051047815,-500.0,0.00031081,2]
[404305870,1770051047825,-500.0,0.00031081,2]
[404305872,1770051047834,-500.0,0.00031081,2]
[404305874,1770051047845,-150.0,0.00031081,2]
[404305876,1770051047855,-191.77684451,0.00031081,2]
[404305878,1770051047864,-250.34228489,0.00031081,2]
[404305880,1770051047873,-500.0,0.00031081,2]
[404305882,1770051047882,-150.0,0.00031081,2]
[404305884,1770051047891,-150.0,0.00031081,2]
[404305886,1770051047899,-500.0,0.00031081,2]
[404305888,1770051047908,-150.0,0.00031081,2]
[404305890,1770051047917,-150.0,0.00031081,2]
[404305891,1770051047926,-400.49828196,0.00031161,2]
[404305893,1770051047935,-500.0,0.00031218,2]
[404305895,1770051047945,-500.0,0.00031218,2]
[404305897,1770051047954,-500.0,0.00031218,2]
[404305899,1770051047964,-500.0,0.00031218,2]
[404305901,1770051047973,-500.0,0.00031218,2]
[404305903,1770051047982,-500.0,0.00031218,2]
[404305905,1770051047993,-150.0,0.00031218,2]
[404305907,1770051048002,-500.0,0.00031218,2]
[404305909,1770051048013,-150.0,0.00031218,2]
[404305911,1770051048022,-150.0,0.00031218,2]
[404305913,1770051048033,-600.0,0.00031218,2]
[404305915,1770051048042,-150.0,0.00031218,2]
[404305917,1770051048052,-150.0,0.00031218,2]
[404305919,1770051048061,-3488.61,0.000313,2]
[404305921,1770051048070,-500.0,0.00031355,2]
[404305923,1770051048079,-504.86005865,0.00031355,2]
[404305925,1770051048091,-450.0,0.00031355,2]
[404305927,1770051048101,-179.18771054,0.00031355,2]
[404305929,1770051048110,-202.64390228,0.00031355,2]
[404305931,1770051048119,-500.0,0.00031355,2]
[404305933,1770051048129,-150.0,0.00031355,2]
[404305935,1770051048138,-500.0,0.00031355,2]
[404305937,1770051048148,-150.0,0.00031355,2]
[404305939,1770051048157,-200.0,0.00031355,2]
[404305941,1770051048166,-150.0,0.00031355,2]
[404305943,1770051048175,-150.0,0.00031492,2]
[404305945,1770051048184,-150.0,0.00031492,2]
[404305947,1770051048193,-308.02,0.000315,14]
[404305949,1770051048202,-780.92582511,0.00031581,2]
[404305951,1770051048211,-151.0,0.000318,17]
[404305952,1770051048220,-157.0,0.00031863,14]
[404305954,1770051048229,-44025.51765376,0.000319,2]
[404305956,1770051048239,-1000.0,0.00031917,30]
[404305958,1770051048249,-1000.0,0.00031917,30]
[404305960,1770051048258,-1000.0,0.00031917,30]
[404305962,1770051048267,-486.63150184,0.00032,2]
[404305964,1770051048280,-106820.47179071,0.00032,2]
[404305966,1770051048289,-200.0,0.00032,120]
[404305968,1770051048298,-630.0,0.00032374,2]
[404305970,1770051048307,-854.001,0.00032374,2]
[404305972,1770051048319,-1370.0,0.00032374,2]
[404305974,1770051048327,-151.091,0.00032374,2]
[404305976,1770051048337,-6869.80308598,0.00032548,2]
[404305978,1770051048347,-2042.35,0.00032877,10]
[404305980,1770051048356,-3497.23,0.00032877,10]
[404305982,1770051048365,-2914.36,0.00032877,10]
[404305984,1770051048373,-428.01343111,0.00033161,120]
[404305986,1770051048382,-200.0,0.00034,120]
[404305987,1770051048391,-757.738879,0.00034164,30]
[404305989,1770051048401,-151.0,0.000344,11]
[404305991,1770051048410,-2318.0,0.00035,2]
[404305993,1770051048419,-200.0,0.00035,30]
[404305995,1770051048428,-322.49723221,0.00035019,2]
[404305997,1770051048437,-1000.0,0.00035109,30]
[404305999,1770051048446,-1000.0,0.00035109,30]
[404306001,1770051048455,-1000.0,0.00035109,30]
[404306003,1770051048464,-715.0,0.00035109,30]
[404306005,1770051048473,-1041.66666667,0.00035112,30]
[404306006,1770051048482,-455.52858025,0.00035161,120]
[404306007,1770051048492,-168.0,0.00035549,2]
[404306008,1770051048501,-990.0,0.00035616,120]
[404306009,1770051048510,-3764.42466871,0.00035741,10]
[404306010,1770051048519,-200.0,0.00036,120]
[404306011,1770051048528,-1041.66666667,0.0003609,3]
[404306012,1770051048537,-100000.00000001,0.000361,30]
[404306013,1770051048546,-3488.61,0.000361,14]
[404306014,1770051048601,-2030636.07904707,0.00036102,2]
[404306015,1770051048611,-164.82,0.00036184,60]
[404306016,1770051048620,-180.88,0.00036186,60]
[404306017,1770051048629,-153.95,0.00036187,60]
[404306018,1770051048639,-173.0,0.00036196,60]
[404306019,1770051048648,-152.11,0.00036227,60]
[404306020,1770051048657,-164.82,0.00036284,60]
[404306021,1770051048666,-180.89,0.00036286,60]
[404306022,1770051048675,-153.95,0.00036287,60]
[404306023,1770051048684,-173.0,0.00036296,60]
[404306024,1770051048693,-228.0,0.00036359,2]
[404306025,1770051048703,-164.82,0.00036384,60]
[404306026,1770051048711,-153.95,0.00036387,60]
[404306027,1770051048720,-173.0,0.00036396,60]
[404306028,1770051048729,-150.81,0.00036467,60]
[404306030,1770051048738,-164.82,0.00036484,60]
[404306031,1770051048747,-153.9794657,0.00036487,60]
[404306033,1770051048756,-173.0,0.00036496,60]
[404306035,1770051048765,-150.81,0.00036567,60]
[404306037,1770051048774,-168.0,0.00036578,2]
[404306039,1770051048783,-164.82,0.00036584,60]
[404306041,1770051048794,-173.0208815,0.00036596,60]
[404306043,1770051048803,-150.81,0.00036667,60]